[Event "*** Titled Tuesday Blitz"]
[Site "Chess.com"]
[Date "2020.10.27"]
[Round "10"]
[White "DrMamaliga"]
[Black "Deepweb2020"]
[Result "0-1"]
[WhiteElo "2337"]
[BlackElo "2242"]
[TimeControl "180+1"]
[EndTime "11:55:25 PDT"]
[Termination "Deepweb2020 won by resignation"]

1. c4 {[%clk 0:03:00.9]} 1... Nf6 {[%clk 0:02:51]} 2. Nf3 {[%clk 0:02:59.9]}
2... e6 {[%clk 0:02:49.1]} 3. b3 {[%clk 0:03:00.3]} 3... b6 {[%clk 0:02:48]} 4.
Bb2 {[%clk 0:03:00.8]} 4... Bb7 {[%clk 0:02:47.8]} 5. g3 {[%clk 0:03:01.4]} 5...
c5 {[%clk 0:02:42.8]} 6. Bg2 {[%clk 0:03:01.1]} 6... Be7 {[%clk 0:02:41.7]} 7.
O-O {[%clk 0:02:59.7]} 7... O-O {[%clk 0:02:42]} 8. e3 {[%clk 0:02:59.7]} 8...
d5 {[%clk 0:02:41.6]} 9. Nc3 {[%clk 0:02:59.6]} 9... dxc4 {[%clk 0:02:36.9]} 10.
bxc4 {[%clk 0:02:59.2]} 10... Nc6 {[%clk 0:02:32.2]} 11. Qe2 {[%clk 0:02:58.6]}
11... Qc7 {[%clk 0:02:30.6]} 12. Ne1 {[%clk 0:02:58]} 12... Rad8 {[%clk
0:02:30.1]} 13. f4 {[%clk 0:02:58.3]} 13... Rd7 {[%clk 0:02:26]} 14. g4 {[%clk
0:02:57]} 14... Rfd8 {[%clk 0:02:24]} 15. Rd1 {[%clk 0:02:54.7]} 15... Nb4
{[%clk 0:02:23.8]} 16. g5 {[%clk 0:02:53]} 16... Ne8 {[%clk 0:02:18.3]} 17. Nb5
{[%clk 0:02:48.6]} 17... Qb8 {[%clk 0:02:17.7]} 18. Rf2 {[%clk 0:02:39.7]} 18...
Nxa2 {[%clk 0:02:12.9]} 19. Qh5 {[%clk 0:02:29.7]} 19... Nb4 {[%clk 0:02:01.5]}
20. d4 {[%clk 0:02:16.5]} 20... cxd4 {[%clk 0:01:50.6]} 21. exd4 {[%clk
0:02:17.4]} 21... a6 {[%clk 0:01:46]} 22. Na3 {[%clk 0:02:15.4]} 22... Bc5
{[%clk 0:01:39.5]} 23. Nf3 {[%clk 0:01:25.5]} 23... Bxf3 {[%clk 0:01:10.4]} 24.
Rxf3 {[%clk 0:01:24.7]} 24... Bxd4+ {[%clk 0:00:58]} 25. Bxd4 {[%clk 0:01:23.3]}
25... Rxd4 {[%clk 0:00:58.6]} 26. Rxd4 {[%clk 0:01:23.9]} 26... Rxd4 {[%clk
0:00:59.2]} 27. Rh3 {[%clk 0:01:22.9]} 27... Qxf4 {[%clk 0:00:51.6]} 28. Qxh7+
{[%clk 0:01:08.7]} 28... Kf8 {[%clk 0:00:51]} 29. Rf3 {[%clk 0:00:52.5]} 29...
Rd1+ {[%clk 0:00:38.7]} 30. Kf2 {[%clk 0:00:51.3]} 30... Nd3+ {[%clk 0:00:31]}
0-1

[Event "*** Titled Tuesday Blitz"]
[Site "Chess.com"]
[Date "2020.10.27"]
[Round "10"]
[White "Rytenko_V"]
[Black "infinitegiantkiller"]
[Result "1/2-1/2"]
[WhiteElo "2533"]
[BlackElo "2441"]
[TimeControl "180+1"]
[EndTime "11:55:29 PDT"]
[Termination "Game drawn by repetition"]

1. d4 {[%clk 0:03:00.9]} 1... e6 {[%clk 0:03:00.9]} 2. Nf3 {[%clk 0:02:59.9]}
2... d5 {[%clk 0:02:58.6]} 3. Bg5 {[%clk 0:02:50.1]} 3... Nf6 {[%clk 0:02:59.5]}
4. e3 {[%clk 0:02:50]} 4... Be7 {[%clk 0:02:59.7]} 5. Bd3 {[%clk 0:02:50.2]}
5... O-O {[%clk 0:03:00.1]} 6. O-O {[%clk 0:02:50.4]} 6... b6 {[%clk 0:03:00.1]}
7. Nbd2 {[%clk 0:02:50.5]} 7... Bb7 {[%clk 0:03:00.5]} 8. c3 {[%clk 0:02:51]}
8... Nbd7 {[%clk 0:03:00.5]} 9. Qe2 {[%clk 0:02:51.2]} 9... c5 {[%clk
0:03:01.1]} 10. Rad1 {[%clk 0:02:49.7]} 10... Rc8 {[%clk 0:02:57.7]} 11. Rfe1
{[%clk 0:02:49.5]} 11... Ne4 {[%clk 0:02:56.8]} 12. Bxe7 {[%clk 0:02:47.4]}
12... Qxe7 {[%clk 0:02:57.7]} 13. h3 {[%clk 0:02:45.2]} 13... f5 {[%clk
0:02:57.2]} 14. Nf1 {[%clk 0:02:40.5]} 14... c4 {[%clk 0:02:55.6]} 15. Bb1
{[%clk 0:02:37.8]} 15... a6 {[%clk 0:02:52.9]} 16. N3d2 {[%clk 0:02:37.8]} 16...
b5 {[%clk 0:02:52.8]} 17. f3 {[%clk 0:02:36.9]} 17... Nxd2 {[%clk 0:02:50.9]}
18. Nxd2 {[%clk 0:02:36]} 18... e5 {[%clk 0:02:51.1]} 19. e4 {[%clk 0:02:07.2]}
19... fxe4 {[%clk 0:02:48.8]} 20. fxe4 {[%clk 0:02:04.5]} 20... exd4 {[%clk
0:02:48.8]} 21. cxd4 {[%clk 0:02:02.7]} 21... dxe4 {[%clk 0:02:48.7]} 22. Bxe4
{[%clk 0:01:42.1]} 22... Bxe4 {[%clk 0:02:41.2]} 23. Qxe4 {[%clk 0:01:41.8]}
23... Qxe4 {[%clk 0:02:40.5]} 24. Rxe4 {[%clk 0:01:41.5]} 24... Nf6 {[%clk
0:02:41.4]} 25. Re6 {[%clk 0:01:40.8]} 25... a5 {[%clk 0:02:41.4]} 26. Re5
{[%clk 0:01:36.1]} 26... Rfd8 {[%clk 0:02:38.7]} 27. Nf3 {[%clk 0:01:11.4]}
27... Rd5 {[%clk 0:02:38]} 28. a3 {[%clk 0:01:06.2]} 28... b4 {[%clk 0:02:36.2]}
29. axb4 {[%clk 0:01:06.4]} 29... axb4 {[%clk 0:02:37.1]} 30. Rc1 {[%clk
0:01:05]} 30... c3 {[%clk 0:02:31.5]} 31. bxc3 {[%clk 0:01:04.3]} 31... bxc3
{[%clk 0:02:32.4]} 32. Rc2 {[%clk 0:01:03.8]} 32... Rxe5 {[%clk 0:02:29.7]} 33.
Nxe5 {[%clk 0:00:41.3]} 33... Nd5 {[%clk 0:02:30.6]} 34. Nd3 {[%clk 0:00:35.3]}
34... Ne3 {[%clk 0:02:26.1]} 35. Re2 {[%clk 0:00:29.9]} 35... Nf5 {[%clk
0:02:22]} 36. d5 {[%clk 0:00:20.1]} 36... Nd4 {[%clk 0:02:18]} 37. Re1 {[%clk
0:00:15.5]} 37... c2 {[%clk 0:02:15.7]} 38. Kf2 {[%clk 0:00:15.6]} 38... Nb3
{[%clk 0:02:15.2]} 39. Nc1 {[%clk 0:00:14.4]} 39... Nxc1 {[%clk 0:02:05.1]} 40.
Rxc1 {[%clk 0:00:14.2]} 40... Kf7 {[%clk 0:02:05]} 41. Ke2 {[%clk 0:00:14]}
41... Kf6 {[%clk 0:02:05.4]} 42. Kd2 {[%clk 0:00:14.3]} 42... Ke5 {[%clk
0:02:05.6]} 43. Rxc2 {[%clk 0:00:14.6]} 43... Rxc2+ {[%clk 0:02:04.6]} 44. Kxc2
{[%clk 0:00:15]} 44... Kxd5 {[%clk 0:02:05.5]} 45. Kd3 {[%clk 0:00:15.6]} 45...
Ke5 {[%clk 0:02:06.2]} 46. Ke3 {[%clk 0:00:16.1]} 46... g5 {[%clk 0:02:06]} 47.
Kf3 {[%clk 0:00:15.7]} 47... h5 {[%clk 0:02:05.7]} 48. g4 {[%clk 0:00:10.1]}
48... h4 {[%clk 0:01:34.4]} 49. Ke3 {[%clk 0:00:09.7]} 49... Kd5 {[%clk
0:01:34.8]} 50. Kd3 {[%clk 0:00:10]} 50... Ke5 {[%clk 0:01:35]} 51. Ke3 {[%clk
0:00:10.5]} 51... Kd5 {[%clk 0:01:35.6]} 52. Kd3 {[%clk 0:00:10.9]} 52... Ke5
{[%clk 0:01:35.9]} 53. Ke3 {[%clk 0:00:11.4]} 1/2-1/2

[Event "*** Titled Tuesday Blitz"]
[Site "Chess.com"]
[Date "2020.10.27"]
[Round "10"]
[White "Brave_spirit12"]
[Black "QuintilianoR"]
[Result "0-1"]
[WhiteElo "2497"]
[BlackElo "2657"]
[TimeControl "180+1"]
[EndTime "11:55:31 PDT"]
[Termination "QuintilianoR won by checkmate"]

1. e4 {[%clk 0:02:57.1]} 1... c5 {[%clk 0:02:59.8]} 2. c3 {[%clk 0:02:56.4]}
2... Nf6 {[%clk 0:02:59.4]} 3. e5 {[%clk 0:02:56.6]} 3... Nd5 {[%clk 0:02:59.6]}
4. d4 {[%clk 0:02:56.2]} 4... cxd4 {[%clk 0:02:59.4]} 5. Nf3 {[%clk 0:02:56]}
5... e6 {[%clk 0:02:59.9]} 6. Qxd4 {[%clk 0:02:54.8]} 6... Nc6 {[%clk
0:02:59.1]} 7. Qe4 {[%clk 0:02:55.2]} 7... f5 {[%clk 0:02:58.9]} 8. exf6 {[%clk
0:02:52.9]} 8... Nxf6 {[%clk 0:02:58.5]} 9. Qh4 {[%clk 0:02:53.4]} 9... d5
{[%clk 0:02:58]} 10. Bd3 {[%clk 0:02:53.9]} 10... Bd6 {[%clk 0:02:57.1]} 11.
Bg6+ {[%clk 0:02:53]} 11... Kd7 {[%clk 0:02:55.1]} 12. Bc2 {[%clk 0:02:50.7]}
12... Kc7 {[%clk 0:02:54.4]} 13. Bg5 {[%clk 0:02:49]} 13... e5 {[%clk
0:02:51.7]} 14. Na3 {[%clk 0:02:46.5]} 14... a6 {[%clk 0:02:50.4]} 15. Rd1
{[%clk 0:02:42.6]} 15... Be6 {[%clk 0:02:48.4]} 16. O-O {[%clk 0:02:37.7]} 16...
h6 {[%clk 0:02:46.1]} 17. Be3 {[%clk 0:02:37.3]} 17... g5 {[%clk 0:02:32.9]} 18.
Qa4 {[%clk 0:02:29.4]} 18... b5 {[%clk 0:02:30.4]} 19. Qb3 {[%clk 0:02:28.4]}
19... Na5 {[%clk 0:01:50.6]} 20. Nxb5+ {[%clk 0:02:26.8]} 20... axb5 {[%clk
0:01:51.5]} 21. Qxb5 {[%clk 0:02:27.7]} 21... Nc4 {[%clk 0:01:50.3]} 22. Bb3
{[%clk 0:01:49.5]} 22... Bd7 {[%clk 0:01:33.4]} 23. Bb6+ {[%clk 0:01:35.4]}
23... Nxb6 {[%clk 0:01:31.9]} 24. Qe2 {[%clk 0:01:36.3]} 24... Qe7 {[%clk
0:01:28.3]} 25. c4 {[%clk 0:01:34.5]} 25... e4 {[%clk 0:01:14.4]} 26. Nd4 {[%clk
0:01:27.1]} 26... Qe5 {[%clk 0:01:07.6]} 27. g3 {[%clk 0:01:21]} 27... Bc5
{[%clk 0:01:00.1]} 28. Nf3 {[%clk 0:01:04.5]} 28... Bg4 {[%clk 0:00:54.2]} 29.
cxd5 {[%clk 0:01:03.3]} 29... Bxf3 {[%clk 0:00:49.8]} 30. Qc2 {[%clk 0:01:03.3]}
30... Kd6 {[%clk 0:00:45.2]} 31. Rc1 {[%clk 0:01:00.6]} 31... Rhc8 {[%clk
0:00:43.9]} 32. Qd2 {[%clk 0:01:00.9]} 32... e3 {[%clk 0:00:39.9]} 33. Qd3
{[%clk 0:01:01.2]} 33... exf2+ {[%clk 0:00:36.3]} 34. Rxf2 {[%clk 0:01:01.1]}
34... Bxf2+ {[%clk 0:00:35.3]} 35. Kxf2 {[%clk 0:01:02]} 35... Rxc1 {[%clk
0:00:34.2]} 36. Kxf3 {[%clk 0:01:01.4]} 36... Rf8 {[%clk 0:00:29.8]} 37. Qb5
{[%clk 0:00:56.5]} 37... Qe4+ {[%clk 0:00:26.5]} 38. Kf2 {[%clk 0:00:56]} 38...
Ng4# {[%clk 0:00:25.5]} 0-1

[Event "*** Titled Tuesday Blitz"]
[Site "Chess.com"]
[Date "2020.10.27"]
[Round "10"]
[White "Nemsko"]
[Black "paulrusan"]
[Result "1-0"]
[WhiteElo "2335"]
[BlackElo "2217"]
[TimeControl "180+1"]
[EndTime "11:55:31 PDT"]
[Termination "Nemsko won on time"]

1. e4 {[%clk 0:03:00.9]} 1... g6 {[%clk 0:02:59.6]} 2. d4 {[%clk 0:03:00.9]}
2... Bg7 {[%clk 0:02:59.7]} 3. Nc3 {[%clk 0:03:01.3]} 3... d6 {[%clk 0:02:59.9]}
4. Be3 {[%clk 0:03:01.9]} 4... a6 {[%clk 0:02:59.7]} 5. Qd2 {[%clk 0:03:01.2]}
5... b5 {[%clk 0:02:59.8]} 6. O-O-O {[%clk 0:03:01.1]} 6... Bb7 {[%clk
0:02:59.9]} 7. Bd3 {[%clk 0:03:00.9]} 7... Nd7 {[%clk 0:02:58.9]} 8. h4 {[%clk
0:03:00.8]} 8... h5 {[%clk 0:02:58.5]} 9. f3 {[%clk 0:03:00.9]} 9... c5 {[%clk
0:02:58.2]} 10. dxc5 {[%clk 0:03:00.4]} 10... Nxc5 {[%clk 0:02:57.5]} 11. Kb1
{[%clk 0:03:00.4]} 11... Rc8 {[%clk 0:02:56.6]} 12. Nge2 {[%clk 0:03:00.4]}
12... Nf6 {[%clk 0:02:56.2]} 13. Nd4 {[%clk 0:02:56.3]} 13... O-O {[%clk
0:02:47.3]} 14. Bh6 {[%clk 0:02:54.5]} 14... b4 {[%clk 0:02:46.8]} 15. Nce2
{[%clk 0:02:54.1]} 15... a5 {[%clk 0:02:34.8]} 16. Bxg7 {[%clk 0:02:51.5]} 16...
Kxg7 {[%clk 0:02:33.7]} 17. Qg5 {[%clk 0:02:51.9]} 17... Kh7 {[%clk 0:02:21.6]}
18. g4 {[%clk 0:02:51.1]} 18... Nxd3 {[%clk 0:02:16.9]} 19. cxd3 {[%clk
0:02:45.5]} 19... Rc5 {[%clk 0:02:17.3]} 20. Qe3 {[%clk 0:02:41.9]} 20... a4
{[%clk 0:02:12]} 21. g5 {[%clk 0:02:22.9]} 21... Nd7 {[%clk 0:02:10.7]} 22. f4
{[%clk 0:02:22.9]} 22... Qc7 {[%clk 0:02:02.9]} 23. Rc1 {[%clk 0:02:14.2]} 23...
Rc8 {[%clk 0:02:01.9]} 24. f5 {[%clk 0:02:03.1]} 24... Ne5 {[%clk 0:01:32.5]}
25. fxg6+ {[%clk 0:01:56.7]} 25... fxg6 {[%clk 0:01:31.2]} 26. Ne6 {[%clk
0:01:56.9]} 26... Rxc1+ {[%clk 0:01:28.9]} 27. Rxc1 {[%clk 0:01:57.8]} 27... Qa5
{[%clk 0:01:15.7]} 28. d4 {[%clk 0:01:30.5]} 28... Rxc1+ {[%clk 0:00:55.4]} 29.
Nxc1 {[%clk 0:01:28]} 29... Bc8 {[%clk 0:00:35.1]} 30. Nf8+ {[%clk 0:01:18.3]}
30... Kg7 {[%clk 0:00:31.4]} 31. dxe5 {[%clk 0:01:18.4]} 31... Qxe5 {[%clk
0:00:19]} 32. Nd3 {[%clk 0:01:14.8]} 32... Qh2 {[%clk 0:00:11]} 33. Qf3 {[%clk
0:01:03.4]} 33... Ba6 {[%clk 0:00:07.8]} 34. Ne6+ {[%clk 0:01:01.7]} 1-0

[Event "*** Titled Tuesday Blitz"]
[Site "Chess.com"]
[Date "2020.10.27"]
[Round "10"]
[White "BanjoKazooieN64"]
[Black "Margarita2907"]
[Result "1-0"]
[WhiteElo "2355"]
[BlackElo "2203"]
[TimeControl "180+1"]
[EndTime "11:55:33 PDT"]
[Termination "BanjoKazooieN64 won by resignation"]

1. e4 {[%clk 0:03:00.9]} 1... c5 {[%clk 0:02:59.2]} 2. d4 {[%clk 0:02:51]} 2...
cxd4 {[%clk 0:02:58.5]} 3. c3 {[%clk 0:02:51.4]} 3... dxc3 {[%clk 0:02:58.5]} 4.
Nxc3 {[%clk 0:02:51.9]} 4... d6 {[%clk 0:02:58.3]} 5. Nf3 {[%clk 0:02:52.3]}
5... Nf6 {[%clk 0:02:57.9]} 6. Bc4 {[%clk 0:02:51.5]} 6... e6 {[%clk 0:02:56.8]}
7. O-O {[%clk 0:02:51.2]} 7... Be7 {[%clk 0:02:56.8]} 8. Qe2 {[%clk 0:02:51.3]}
8... O-O {[%clk 0:02:49.8]} 9. Rd1 {[%clk 0:02:51.5]} 9... Nbd7 {[%clk
0:02:49.6]} 10. Nb5 {[%clk 0:02:47.4]} 10... Nb6 {[%clk 0:02:28.1]} 11. e5
{[%clk 0:02:42.2]} 11... Nfd5 {[%clk 0:02:19.9]} 12. exd6 {[%clk 0:02:25.4]}
12... Bxd6 {[%clk 0:02:17.7]} 13. Bd3 {[%clk 0:02:25.5]} 13... a6 {[%clk
0:02:07.9]} 14. Nxd6 {[%clk 0:02:24.2]} 14... Qxd6 {[%clk 0:02:08.2]} 15. Ng5
{[%clk 0:02:14.3]} 15... g6 {[%clk 0:02:07.3]} 16. Ne4 {[%clk 0:02:13.4]} 16...
Qe5 {[%clk 0:02:01.5]} 17. Bh6 {[%clk 0:02:01.5]} 17... Rd8 {[%clk 0:02:00.4]}
18. Qf3 {[%clk 0:01:54.9]} 18... Nd7 {[%clk 0:01:53.5]} 19. Bc4 {[%clk
0:01:43.2]} 19... b5 {[%clk 0:01:39.2]} 20. Ng5 {[%clk 0:01:03.1]} 20... Qf6
{[%clk 0:01:05.6]} 21. Bxd5 {[%clk 0:00:59.6]} 21... exd5 {[%clk 0:01:05.2]} 22.
Qxd5 {[%clk 0:00:54.3]} 22... Rb8 {[%clk 0:00:54.9]} 23. Ne4 {[%clk 0:00:53.1]}
23... Qb6 {[%clk 0:00:42.4]} 24. Nd6 {[%clk 0:00:42.2]} 24... Ne5 {[%clk
0:00:07.8]} 25. Qxe5 {[%clk 0:00:39.9]} 1-0

[Event "*** Titled Tuesday Blitz"]
[Site "Chess.com"]
[Date "2020.10.27"]
[Round "10"]
[White "ArjunErigaisi2003"]
[Black "Zkid"]
[Result "1-0"]
[WhiteElo "2994"]
[BlackElo "2811"]
[TimeControl "180+1"]
[EndTime "11:55:35 PDT"]
[Termination "ArjunErigaisi2003 won by checkmate"]

1. b3 {[%clk 0:03:00.9]} 1... e5 {[%clk 0:02:59.3]} 2. Bb2 {[%clk 0:03:01.8]}
2... Nc6 {[%clk 0:02:59.1]} 3. e3 {[%clk 0:03:02.4]} 3... g6 {[%clk 0:02:59.2]}
4. Bb5 {[%clk 0:03:02.5]} 4... Nge7 {[%clk 0:02:58.8]} 5. f4 {[%clk 0:03:02.2]}
5... Bg7 {[%clk 0:02:57.8]} 6. Nf3 {[%clk 0:03:02.9]} 6... a6 {[%clk 0:02:50.7]}
7. Bxc6 {[%clk 0:03:01.3]} 7... Nxc6 {[%clk 0:02:51.6]} 8. Nxe5 {[%clk
0:02:36.9]} 8... Nxe5 {[%clk 0:02:47.8]} 9. Bxe5 {[%clk 0:02:37.8]} 9... Bxe5
{[%clk 0:02:46.2]} 10. fxe5 {[%clk 0:02:38.7]} 10... Qh4+ {[%clk 0:02:38.3]} 11.
g3 {[%clk 0:02:38.5]} 11... Qe4 {[%clk 0:02:35.8]} 12. O-O {[%clk 0:02:38.8]}
12... Qxe5 {[%clk 0:02:36.3]} 13. Nc3 {[%clk 0:02:38.1]} 13... O-O {[%clk
0:02:33.2]} 14. Qf3 {[%clk 0:02:37.5]} 14... d6 {[%clk 0:02:26.4]} 15. d4 {[%clk
0:02:32.2]} 15... Qf5 {[%clk 0:02:16]} 16. Qg2 {[%clk 0:01:59.6]} 16... Qa5
{[%clk 0:02:06.6]} 17. Nd5 {[%clk 0:01:58.5]} 17... Be6 {[%clk 0:02:05.9]} 18.
Nf6+ {[%clk 0:01:52.2]} 18... Kg7 {[%clk 0:02:05.9]} 19. e4 {[%clk 0:01:49.7]}
19... h5 {[%clk 0:01:39.9]} 20. d5 {[%clk 0:01:28.5]} 20... Bg4 {[%clk
0:01:35.8]} 21. h3 {[%clk 0:01:28]} 21... Bc8 {[%clk 0:01:31.9]} 22. c4 {[%clk
0:01:25.7]} 22... b5 {[%clk 0:01:27]} 23. Qb2 {[%clk 0:01:22.8]} 23... Kh6
{[%clk 0:01:17.8]} 24. Qc1+ {[%clk 0:01:15.3]} 24... Kg7 {[%clk 0:01:13.7]} 25.
Nxh5+ {[%clk 0:01:13.1]} 25... Kh7 {[%clk 0:01:08.3]} 26. Nf6+ {[%clk 0:00:58]}
26... Kg7 {[%clk 0:01:08.2]} 27. Qb2 {[%clk 0:00:58]} 27... Kh6 {[%clk
0:01:01.7]} 28. g4 {[%clk 0:00:45.4]} 28... Qb6+ {[%clk 0:00:49.4]} 29. Kh2
{[%clk 0:00:42]} 29... Qe3 {[%clk 0:00:45.7]} 30. h4 {[%clk 0:00:42.5]} 30... g5
{[%clk 0:00:38.5]} 31. Rae1 {[%clk 0:00:41.3]} 31... Qd3 {[%clk 0:00:36.8]} 32.
Nh5 {[%clk 0:00:38.5]} 32... Rg8 {[%clk 0:00:30.3]} 33. Rf6+ {[%clk 0:00:36.2]}
33... Kh7 {[%clk 0:00:25.1]} 34. Rxf7+ {[%clk 0:00:36.5]} 34... Kh6 {[%clk
0:00:24.3]} 35. Qf6+ {[%clk 0:00:36.7]} 35... Rg6 {[%clk 0:00:24.7]} 36. hxg5#
{[%clk 0:00:37.6]} 1-0

[Event "*** Titled Tuesday Blitz"]
[Site "Chess.com"]
[Date "2020.10.27"]
[Round "10"]
[White "MVM2008"]
[Black "SanchezKelvin"]
[Result "0-1"]
[WhiteElo "2229"]
[BlackElo "2371"]
[TimeControl "180+1"]
[EndTime "11:55:35 PDT"]
[Termination "SanchezKelvin won on time"]

1. d4 {[%clk 0:03:00.6]} 1... Nf6 {[%clk 0:02:59.3]} 2. g4 {[%clk 0:02:58.9]}
2... Nxg4 {[%clk 0:02:52.9]} 3. e4 {[%clk 0:02:58.1]} 3... d6 {[%clk 0:02:52.2]}
4. Nc3 {[%clk 0:02:54.8]} 4... Nf6 {[%clk 0:02:51.3]} 5. f4 {[%clk 0:02:44.2]}
5... Bg4 {[%clk 0:02:41.5]} 6. Be2 {[%clk 0:02:41]} 6... Bxe2 {[%clk 0:02:40.1]}
7. Qxe2 {[%clk 0:02:41.9]} 7... e6 {[%clk 0:02:35]} 8. Be3 {[%clk 0:02:36]} 8...
d5 {[%clk 0:02:34.4]} 9. e5 {[%clk 0:02:30.8]} 9... Nfd7 {[%clk 0:02:33.9]} 10.
O-O-O {[%clk 0:02:24.5]} 10... a6 {[%clk 0:02:29]} 11. f5 {[%clk 0:02:24.8]}
11... Qh4 {[%clk 0:02:20.2]} 12. Nf3 {[%clk 0:02:14.7]} 12... Qh5 {[%clk
0:02:17.9]} 13. Rde1 {[%clk 0:01:44.4]} 13... Nc6 {[%clk 0:02:06.4]} 14. Nxd5
{[%clk 0:01:19.5]} 14... exd5 {[%clk 0:02:04.4]} 15. e6 {[%clk 0:01:17.5]} 15...
fxe6 {[%clk 0:02:01.9]} 16. Bg5 {[%clk 0:01:12]} 16... e5 {[%clk 0:01:47.7]} 17.
dxe5 {[%clk 0:01:01.4]} 17... Bb4 {[%clk 0:01:45.1]} 18. c3 {[%clk 0:00:50.9]}
18... O-O {[%clk 0:01:41.8]} 19. cxb4 {[%clk 0:00:41.6]} 19... Rxf5 {[%clk
0:01:40.2]} 20. e6 {[%clk 0:00:36.9]} 20... Nde5 {[%clk 0:01:26.6]} 21. e7
{[%clk 0:00:05.4]} 21... Rxf3 {[%clk 0:01:18.9]} 22. h4 {[%clk 0:00:03.7]} 22...
Nd3+ {[%clk 0:01:13]} 23. Kb1 {[%clk 0:00:03.4]} 23... Nxe1 {[%clk 0:01:12.5]}
24. Rxe1 {[%clk 0:00:03]} 24... Re8 {[%clk 0:01:11]} 25. b5 {[%clk 0:00:01.3]}
25... Qg6+ {[%clk 0:01:00.9]} 26. Ka1 {[%clk 0:00:01.1]} 26... Nd4 {[%clk
0:01:00.3]} 27. Qe5 {[%clk 0:00:01.1]} 27... Nc2+ {[%clk 0:00:57.4]} 28. Kb1
{[%clk 0:00:02]} 28... Na3+ {[%clk 0:00:56.2]} 29. Ka1 {[%clk 0:00:01.4]} 29...
Qb1+ {[%clk 0:00:55.4]} 0-1

[Event "*** Titled Tuesday Blitz"]
[Site "Chess.com"]
[Date "2020.10.27"]
[Round "10"]
[White "vladislavkovalev"]
[Black "wannabe2700"]
[Result "1-0"]
[WhiteElo "2855"]
[BlackElo "2740"]
[TimeControl "180+1"]
[EndTime "11:55:37 PDT"]
[Termination "vladislavkovalev won on time"]

1. e4 {[%clk 0:02:55.2]} 1... e5 {[%clk 0:02:56.6]} 2. Nf3 {[%clk 0:02:54.6]}
2... Nc6 {[%clk 0:02:57.1]} 3. Nc3 {[%clk 0:02:55.1]} 3... Nf6 {[%clk
0:02:56.5]} 4. h3 {[%clk 0:02:55.5]} 4... d5 {[%clk 0:02:54.1]} 5. exd5 {[%clk
0:02:56.4]} 5... Nxd5 {[%clk 0:02:54.7]} 6. Bb5 {[%clk 0:02:57]} 6... Qd6 {[%clk
0:02:25.3]} 7. Qe2 {[%clk 0:02:43.1]} 7... Bd7 {[%clk 0:00:37.5]} 8. Bxc6 {[%clk
0:02:17.8]} 8... Bxc6 {[%clk 0:00:38.4]} 9. Qxe5+ {[%clk 0:02:18.2]} 9... Qxe5+
{[%clk 0:00:02.3]} 10. Nxe5 {[%clk 0:02:19.1]} 10... Nb4 {[%clk 0:00:03]} 11.
Nxc6 {[%clk 0:02:15.8]} 11... bxc6 {[%clk 0:00:02.2]} 12. Kd1 {[%clk 0:02:13.3]}
12... O-O-O {[%clk 0:00:02.5]} 13. d3 {[%clk 0:02:07.5]} 13... Bc5 {[%clk
0:00:01.8]} 14. Be3 {[%clk 0:02:08.2]} 14... Bxe3 {[%clk 0:00:02.1]} 15. fxe3
{[%clk 0:02:09.1]} 15... Nd5 {[%clk 0:00:03]} 16. Nxd5 {[%clk 0:02:08.1]} 16...
cxd5 {[%clk 0:00:03.9]} 17. Kd2 {[%clk 0:02:08.6]} 17... f6 {[%clk 0:00:04.8]}
18. Rhf1 {[%clk 0:02:09.2]} 18... Rhe8 {[%clk 0:00:05.7]} 19. b4 {[%clk
0:02:03.6]} 19... Re6 {[%clk 0:00:06.6]} 20. Rf3 {[%clk 0:01:56.9]} 20... Rde8
{[%clk 0:00:07.5]} 21. a3 {[%clk 0:01:57.3]} 21... c6 {[%clk 0:00:08.1]} 22.
Raf1 {[%clk 0:01:56.7]} 22... Kc7 {[%clk 0:00:08.3]} 23. g4 {[%clk 0:01:53.2]}
23... Kb6 {[%clk 0:00:08.5]} 24. a4 {[%clk 0:01:36.1]} 24... a5 {[%clk
0:00:08.5]} 25. Rb1 {[%clk 0:01:36.8]} 25... Ra8 {[%clk 0:00:08.2]} 26. b5
{[%clk 0:01:34.5]} 26... c5 {[%clk 0:00:08]} 27. Rf5 {[%clk 0:01:29.8]} 27...
Rd8 {[%clk 0:00:08.1]} 28. Re1 {[%clk 0:01:28.4]} 28... Rd7 {[%clk 0:00:08.2]}
29. h4 {[%clk 0:01:26.8]} 29... g6 {[%clk 0:00:08.7]} 30. Rf4 {[%clk 0:01:26.9]}
30... Rdd6 {[%clk 0:00:06.7]} 31. h5 {[%clk 0:01:24.8]} 31... g5 {[%clk
0:00:05.3]} 32. Rf5 {[%clk 0:01:25.2]} 32... h6 {[%clk 0:00:06.2]} 33. Kc3
{[%clk 0:01:15.1]} 33... Rd7 {[%clk 0:00:05.1]} 34. e4 {[%clk 0:01:12.1]} 34...
dxe4 {[%clk 0:00:02.2]} 35. Rxe4 {[%clk 0:01:13]} 35... Rdd6 {[%clk 0:00:01.2]}
36. Rxe6 {[%clk 0:01:09.4]} 36... Rxe6 {[%clk 0:00:01.6]} 37. Kc4 {[%clk
0:01:10.1]} 37... Rd6 {[%clk 0:00:01.1]} 38. c3 {[%clk 0:01:09.7]} 1-0